Cogmind - Beta 10.2 @@@ ROGUE MODE // 2020.12.20 @ 11:12:28 Player: WeirdFoe Result: Destroyed by G-34 Mercenary with Small Laser Performance ------------- Evolutions (0) 0 Regions Visited (1) 200 Robots Destroyed (11) 55 Value Destroyed (327) 327 Prototype IDs (0) 0 Alien Tech Used (0) 0 Bonus (0) 0 TOTAL SCORE: 582 Bonus ------- None Cogmind --------- Core Integrity 0/250 Matter 266/300 Energy 250/250 System Corruption 0% Temperature Cool (6) Movement Walking (150) Ox1 Location -10/Materials Parts ------- > --- POWER (1) -------- Ion Engine > --- PROPULSION (2) --- Aluminum Leg Aluminum Leg > --- UTILITY (2) ------ Improved Heat Sink Large Storage Unit > --- WEAPON (2) ------- Small Laser Light Assault Rifle > --- INVENTORY (10) --- Ion Engine Light Nuclear Core Aluminum Leg Aluminum Leg Aluminum Leg Large Matter Pod (108) Small Laser Small Laser Peak State ------------ > --- POWER ------------ Ion Engine > --- PROPULSION ------- Aluminum Leg Aluminum Leg > --- UTILITY ---------- Improved Heat Sink Large Storage Unit > --- WEAPON ----------- Small Laser Light Assault Rifle > --- INVENTORY -------- Ion Engine Light Nuclear Core Aluminum Leg Aluminum Leg Aluminum Leg Large Matter Pod Small Laser Small Laser [Rating: 10] Favorites ----------- Power Light Ion Engine Engine Light Ion Engine Propulsion Aluminum Leg Leg Aluminum Leg Wheel Compact Wheel Utility Large Storage Unit Device Improved Terrain Scanner Storage Large Storage Unit Weapon Light Assault Rifle Energy Gun Small Laser Ballistic Gun Light Assault Rifle Build | -11 -10 ------- Run | Scr Mat Slots Evolved . | . . Power . | . . Propulsion . | . . Utility . | . . Weapon . | . . Parts Attached 24 | 7 17 Power 3 | 1 2 Engine 3 | 1 2 Core . | . . Reactor . | . . Propulsion 8 | 2 6 Treads . | . . Leg 6 | . 6 Wheel 2 | 2 . Hover . | . . Flight . | . . Utility 5 | 2 3 Device 2 | 1 1 Storage 3 | 1 2 Processor . | . . Hackware . | . . Protection . | . . Artifact . | . . Weapon 8 | 2 6 Energy Gun 4 | . 4 Energy Cannon . | . . Ballistic Gun 4 | 2 2 Ballistic Cannon . | . . Launcher . | . . Special Weapon . | . . Impact Weapon . | . . Slashing Weapon . | . . Piercing Weapon . | . . Special Melee Weapon . | . . Unidentified Prototypes . | . . Parts Lost 8 | . 8 Power 2 | . 2 Propulsion 2 | . 2 Utility 1 | . 1 Weapon 3 | . 3 Highest Loss Streak 6 | . 6 Average Slot Usage (%) 96 | . 96 Engine 13 | . 13 Leg 18 | . 18 Wheel 7 | . 7 Device 5 | . 5 Storage 22 | . 22 Energy Gun 11 | . 11 Ballistic Gun 15 | . 15 Naked Turns . | . . Heaviest Build 27 | 11 27 Greatest Support 26 | 26 26 Greatest Overweight (x) 1 | . 1 Average Overweight (x) . | . . Largest Inventory Capacity 12 | 6 12 Average Capacity 10 | 5 10 Most Carried 9 | 4 9 Average Carried 5 | 3 5 Final Capacity 10 | 6 10 Final Carried 8 | 4 8 Class Distribution -------------------- 56% | Mutant 43% | Scavenger-Mutant Dominant Class ---------------- Scavenger-Mutant | -10/Materials Resources | -11 -10 ----------- Run | Scr Mat Matter Collected 585 | 263 322 Remotely . | . . Salvage Created 451 | 100 351 Parts 24 | 5 19 Haulers Intercepted . | . . Recyclers Shooed . | . . Parts Field Recycled . | . . Retrieved Matter . | . . Parts Self-Destructed . | . . Prevented . | . . Kills | -11 -10 ------- Run | Scr Mat Combat Hostiles Destroyed 8 | . 8 Guns 8 | . 8 Classes Destroyed 4 | 2 2 Tunneler 1 | 1 . Recycler 1 | 1 . Watcher 1 | . 1 Grunt 8 | . 8 Best Kill Streak 2 | 2 2 Combat Bots Only 2 | . 2 Max Kills in Single Turn 1 | 1 1 Gunslinging . | . . Exploded . | . . Melee . | . . Uniques/NPCs Destroyed . | . . Combat | -11 -10 -------- Run | Scr Mat Damage Taken 1145 | . 1145 Core 253 | . 253 Absorbed by Shields . | . . Core Remaining (%) 100 | 100 . Volleys Fired 50 | 7 43 Largest 2 | 2 2 Hottest 80 | 40 80 Shots Fired 100 | 14 86 Gun 100 | 14 86 Cannon . | . . Launcher . | . . Special . | . . Kinetic 65 | 14 51 Thermal 28 | . 28 Explosive . | . . Electromagnetic 7 | . 7 Robot Hit Streak 7 | 7 7 Robot Miss Streak 2 | 1 2 Penetration Max . | . . Secondary Targets 1 | . 1 Max Gunslinging Chain 1 | . 1 Shots Hit Robots 72 | 11 61 Core Hits 27 | 3 24 Critical Hits . | . . Critical Kills . | . . Critical Parts Destroyed . | . . Melee Attacks . | . . Impact . | . . Slashing . | . . Piercing . | . . Sneak Attacks . | . . Combat Hostiles . | . . Follow-up Attacks . | . . Damage Inflicted 767 | 111 656 Guns 739 | 111 628 Cannons . | . . Explosions 28 | . 28 Melee . | . . Ramming . | . . Kinetic 420 | 111 309 Thermal 259 | . 259 Explosive . | . . Electromagnetic 88 | . 88 Impact . | . . Slashing . | . . Piercing . | . . Highest Corruption . | . . Average Corruption . | . . Corruption Purged . | . . Overload Shots . | . . Overflow Damage . | . . Projectiles . | . . Explosions . | . . Melee . | . . Knockbacks . | . . Impact . | . . Kinetic . | . . Secondary . | . . Self-Inflicted Damage 27 | . 27 Shots 1 | . 1 Rammed . | . . Targets Rammed . | . . Kicked . | . . Crushed . | . . Highest Temperature 180 | . 180 Average Temperature 50 | . 50 Received Heat Transfer 573 | . 573 Siege Activations . | . . Robots Corrupted . | . . Combat Hostiles . | . . Parts Fried . | . . Impact Corruptions . | . . Robots Melted . | . . Combat Hostiles . | . . Parts Melted 1 | . 1 Heat Transferred 575 | . 575 Parts Sabotaged . | . . Parts Stolen . | . . Parts Stripped . | . . Power Chain Reactions 1 | . 1 Missiles Intercepted . | . . Alert | -11 -10 ------- Run | Scr Mat Peak Influence 192 | 10 192 Initial 6 | . 6 Average 61 | 3 72 Maximum Alert Level . | . . Low Security (%) 100 | 100 100 Level 1 . | . . Level 2 . | . . Level 3 . | . . Level 4 . | . . Level 5 . | . . High Security . | . . Max Security . | . . Squads Dispatched 2 | . 2 Investigation . | . . Extermination . | . . Reinforcement 2 | . 2 Assault . | . . Garrison . | . . Intercept . | . . Construction Impeded . | . . Haulers Reinforced . | . . Stealth | -11 -10 --------- Run | Scr Mat Distress Signals 1 | . 1 Communications Jammed . | . . Distress Signals . | . . Times Spotted 20 | . 20 Peak Tracking Total 4 | . 4 Tactical Retreats . | . . Traps | -11 -10 ------- Run | Scr Mat Traps Triggered . | . . Indirectly . | . . Trap Hack Attempts . | . . Triggered . | . . Disarmed . | . . Reprogrammed . | . . Reused . | . . Traps Extracted . | . . Installed . | . . Triggered . | . . Machines | -11 -10 ---------- Run | Scr Mat Machines Disabled . | . . Max in Single Turn . | . . Machines Sabotaged . | . . Garrisons Compromised . | . . Overloaded Fab Kills . | . . Fab Network Shutdowns . | . . Hacking | -11 -10 --------- Run | Scr Mat Machines Accessed . | . . Terminals . | . . Fabricators . | . . Repair Stations . | . . Recycling Units . | . . Scanalyzers . | . . Garrison Access . | . . Total Hacks . | . . Successful . | . . Failed . | . . Catastrophic . | . . Database Lockouts . | . . Manual . | . . Terminals . | . . Fabricators . | . . Repair Stations . | . . Recycling Units . | . . Scanalyzers . | . . Garrison Access . | . . Terminal Hacks . | . . Fabricator Hacks . | . . Repair Station Hacks . | . . Recycling Unit Hacks . | . . Scanalyzer . | . . Garrison Access Hacks . | . . Unauthorized Hacks . | . . Terminals . | . . Fabricators . | . . Repair Stations . | . . Recycling Units . | . . Scanalyzers . | . . Garrison Access . | . . Data Cores Recovered . | . . Used . | . . Hacking Detections . | . . Full Trace Events . | . . Feedback Events . | . . Feedback Blocked . | . . Robot Schematics Acquired . | . . Robots Built . | . . Matter . | . . Time . | . . Total Robot Build Rating . | . . Part Schematics Acquired . | . . Parts Built . | . . Matter . | . . Time . | . . Total Part Build Rating . | . . Parts Repaired . | . . Time . | . . Parts Recycled . | . . Recycled Matter . | . . Retrieved Matter . | . . Retrieved Components . | . . Parts Scanalyzed . | . . Part Schematics Acquired . | . . Parts Damaged . | . . Bothacking | -11 -10 ------------ Run | Scr Mat Used RIF Installer . | . . Robots Hacked . | . . Non-combat . | . . Combat . | . . Robot Hacks Applied . | . . Relay Couplers Released . | . . Robots Rewired . | . . Allies Hacked . | . . Hacks Repelled . | . . Allies | -11 -10 -------- Run | Scr Mat Total Allies . | . . Largest Group . | . . Highest-Rated Group . | . . Highest-Rated Ally . | . . Total Orders . | . . Ally Attacks . | . . Total Damage . | . . Kills . | . . Allies Corrupted . | . . Allies Melted . | . . Intel | -11 -10 ------- Run | Scr Mat Robot Analysis Total . | . . Derelict Logs Recovered . | . . Drone Launches . | . . Drone Recoveries . | . . Exploration | -11 -10 ------------- Run | Scr Mat Turns Passed 446 | 71 375 Spaces Moved 195 | 44 151 Core 3 | 3 . Treads . | . . Legs 77 | . 77 Wheels 115 | 41 74 Hover . | . . Flight . | . . Fastest Speed 50 | 50 90 Average Speed 112 | 84 121 Slowest Speed 150 | 90 150 Overloaded Moves . | . . Propulsion Burnouts . | . . Robots Hopped . | . . Cave-ins Triggered . | . . Exploration Rate (%) 12 | 3 21 Regions Visited 1 Branch Regions . Pre-discovered Areas . | . . Known Exits Taken . | . . Unknown Exits Taken 1 | 1 . Scrap Searched . | . . Spaces Dug . | . . Terrain Destroyed 5 | . 5 Melee . | . . Projectile . | . . AOE 5 | . 5 Terrain Rammed . | . . Walls Destroyed . | . . Machines Disabled . | . . Actions | -11 -10 --------- Run | Scr Mat Total 321 | 61 260 Wait 37 | . 37 Move 194 | 43 151 Hop . | . . Pick Up 12 | 4 8 Fast Attach 10 | 7 3 Attach 6 | . 6 Detach . | . . Swap 8 | . 8 Drop 4 | . 4 Fire 50 | 7 43 Melee . | . . Ram . | . . Kick . | . . Crush . | . . Escape Stasis . | . . Rewire . | . . Trap . | . . Miscellaneous . | . . Route ------- -11/Scrapyard -10/Materials History --------- Turn | Location | Event 2 | -11/Scrapyard | Met Revision 17 4 | -11/Scrapyard | Discovered new exit (range 15) 72 | -11/Scrapyard | Entered Materials 227 | -10/Materials | Lost 6 parts (1p2n1u2w) 253 | -10/Materials | Core integrity fell below 50% 373 | -10/Materials | Core integrity fell below 20% 447 | -10/Materials | Destroyed by G-34 Mercenary with Small Laser Last Messages --------------- Acquired Sml. Laser. U-05 Engineer lays Concrete. U-05 Engineer builds a Wall. Acquired Aluminum Leg. U-05 Engineer builds a Wall. O-16 Technician: "IFF HANDSHAKE FAILED. SECURING TERMINAL." U-05 Engineer builds a Wall. ALERT: Hostiles spotted, dispatching reinforcements to Terminal M002. O-16 Technician destroyed. U-05 Engineer lays Concrete. G-34 Mercenary destroyed. G-47 Trooper destroyed. Acquired 50 matter. Acquired 33 matter. Dropped Aluminum Leg. Acquired Lgt. Nuclear Core. Dropped Sml. Storage Unit. Acquired Imp. Heat Sink. W-16 Scout sends out distress signal. W-16 Scout destroyed. Map ----- +----------------------------------------------------+ | ????????????? ????????????????????????????? | | ????????????? ##?????????????????????????? | | ????????????? #??????????????????????????? | | ????????????# ##?????????????????????????? | | ???????????? ##### ???????????????????? | | ???????????? ???????????????????? | | ???????????? ????????????????????? | | ??? ???????# ?????????????????????? | | ???????????# #??????????????????????? | | ???????????# #??????????????????????? | | ???????????# #??????????????????????? | | ???????????# #??????????????????????? | | ???????????# #??????????????????????? | | ???????????# #??????????????????????? | | #??????##### #??????????????????????? | | ???????# # #??????????????????????? | | ?#????## #??????????????????????? | | ???????# ### #??????????????????????? | | ???????## ##?# ^ ^^^############# #????????? | | ???????## #### ???????? | | ?????### # ! ???????? | | ?????####+####+## g /%= ???????? | | ????### # gg#########??????????????? | | ????# # # !#######????????????????? | | #???### # # "T"??????????????? | | ????# # + @# ??????????????? | | ?#### # # # ??????????????? | | ???## # # u # """ """ ?????????????? | | #????## # # """ """ #????????????? | | ?????# # # """ """ #????????????? | | ??#??### ###+### # #????????????? | | ???????##### ##! + #????????????? | | ?#????###### ## ==###########????????????? | | ??????# # #??????????????????????? | | ??????# # #??????????????????????? | | ??????# # ##?#???????????????????? | | ##?#??# + #?????#????????????????? | | ??????# "" """# #????????#?????????????? | | ????#?# """ R"# #??????????????????????? | | ?#???## """ """# #??????????????????????? | | ??????# # #???#??????????????????? | | #?????########### #???????#??????????????? | | ??????#?????????# #??????????????????????? | | ???????##???????# #??????????????????????? | | ????#??#???????## #??????????????????????? | | ??????????#?????# ##?????????????????????? | | ????????????????# #??????????????????????? | | ????#???????????# #??????????????????????? | | ?????????????#??# #??????????????????????? | | ????????????????#####??????????????????????? | +----------------------------------------------------+ Best States ------------- Heat Dissipation 39 Energy Generation 10 Energy Capacity 250 Matter Stores 300 Matter Capacity 300 Sight Range 16 Terrain Scan Range 16 Terrain Scan Density 10 Evasion (%) 44 Item Schematics ----------------- None Robot Schematics ------------------ None Fabricated ------------ Nothing Alien Tech Used ----------------- None Achievements -------------- None Challenges ------------ None Game ------ Seed SwarmIntegrationMediator Manual? 0 Play Time 00:07:23 Cumulative 3.3 hours Start 2020.12.20 @ 11:06:09 End 2020.12.20 @ 11:12:28 Sessions 1 Manual Loads 0 Difficulty Rogue Special Mode None Game No. 5 Rogue 5 Adventurer 0 Explorer 0 Win Type - Total 0 Types 0/0/0/0/0/0/0/0/0 Lore% 6 Gallery% 15 Achievement% 13 Wizard Run 0 Options --------- ASCII 1 Keyboard 0 Movement Mouse Keybinds 0 Fullscreen 1 Font 18/Terminus Map View 76x50 Tactical HUD 0 Map Filters NONE Filters NONE Steam 0 RUN: 6cb9c9d8-a01c-48e4-ad55-91bca3158d19